fUST/lending_fUST_20240803
["ID","MTS","AMOUNT","RATE_DAILY","PERIOD"]
[334012257,1722679841026,-151.0,0.00013688,2]
[334012258,1722679841036,-151.0,0.00013688,2]
[334012259,1722679841046,-151.0,0.00013688,2]
[334012260,1722679841055,-151.0,0.00013688,2]
[334012261,1722679841065,-345.74881,0.00013688,2]
[334012262,1722679841075,-345.74881,0.00013688,2]
[334012263,1722679841084,-151.0,0.00013688,2]
[334012264,1722679841095,-591.472538,0.00013688,2]
[334012265,1722679841104,-151.0,0.00013688,2]
[334012266,1722679841114,-591.472538,0.00013688,2]
[334012267,1722679841123,-176.844736,0.00013688,2]
[334012268,1722679841132,-176.844736,0.00013688,2]
[334012269,1722679841142,-176.844736,0.00013688,2]
[334012270,1722679841151,-176.844736,0.00013688,2]
[334012271,1722679841161,-239.957566,0.00013688,2]
[334012272,1722679841171,-239.957566,0.00013688,2]
[334012273,1722679841180,-239.957566,0.00013688,2]
[334012274,1722679841190,-239.957566,0.00013688,2]
[334012275,1722679841199,-152.596028,0.00013688,2]
[334012276,1722679841208,-151.0,0.00013688,2]
[334012277,1722679841218,-151.0,0.00013688,2]
[334012278,1722679841228,-567.767446,0.00013688,2]
[334012279,1722679841237,-567.767446,0.00013688,2]
[334012280,1722679841247,-567.767446,0.00013688,2]
[334012281,1722679841256,-567.767446,0.00013688,2]
[334012282,1722679841266,-567.767446,0.00013688,2]
[334012283,1722679841276,-567.767446,0.00013688,2]
[334012284,1722679841286,-151.0,0.00013688,2]
[334012285,1722679841296,-151.0,0.00013688,2]
[334012286,1722679841308,-151.0,0.00013688,2]
[334012287,1722679841320,-151.225038,0.00013688,2]
[334012288,1722679841331,-151.0,0.00013688,2]
[334012289,1722679841342,-151.0,0.00013688,2]
[334012290,1722679841353,-151.0,0.00013688,2]
[334012291,1722679841363,-151.0,0.00013688,2]
[334012292,1722679841375,-151.0,0.00013688,2]
[334012293,1722679841387,-151.0,0.00013688,2]
[334012294,1722679841397,-151.0,0.00013688,2]
[334012295,1722679841408,-151.0,0.00013688,2]
[334012296,1722679841419,-151.0,0.00013688,2]
[334012297,1722679841430,-360.503232,0.00013688,2]
[334012298,1722679841440,-360.503232,0.00013688,2]
[334012299,1722679841452,-360.503232,0.00013688,2]
[334012300,1722679841465,-360.503232,0.00013688,2]
[334012301,1722679841477,-360.503232,0.00013688,2]
[334012302,1722679841487,-360.503232,0.00013688,2]
[334012303,1722679841497,-105543.818413,0.00013688,2]
[334012304,1722679841507,-151.0,0.0001369,2]
[334012305,1722679841517,-151.0,0.0001369,2]
[334012306,1722679841527,-151.444341,0.0001369,2]
[334012307,1722679841536,-151.0,0.0001369,2]
[334012308,1722679841547,-151.0,0.0001369,2]
[334012309,1722679841557,-239.487699,0.0001369,2]
[334012310,1722679841567,-239.487699,0.0001369,2]
[334012311,1722679841577,-151.0,0.0001369,2]
[334012312,1722679841587,-151.0,0.0001369,2]
[334012313,1722679841597,-151.0,0.0001369,2]
[334012314,1722679841606,-151.0,0.0001369,2]
[334012315,1722679841616,-345.74881,0.0001369,2]
[334012317,1722679841626,-345.74881,0.0001369,2]
[334012319,1722679841636,-21108.7636826,0.0001369,2]
[334012321,1722679841647,-591.472538,0.0001369,2]
[334012323,1722679841657,-151.0,0.0001369,2]
[334012325,1722679841668,-591.472538,0.0001369,2]
[334012326,1722679841680,-176.844736,0.0001369,2]
[334012328,1722679841692,-176.844736,0.0001369,2]
[334012330,1722679841702,-239.957566,0.0001369,2]
[334012333,1722679841714,-239.957566,0.0001369,2]
[334012335,1722679841725,-151.0,0.0001369,2]
[334012337,1722679841737,-567.767446,0.0001369,2]
[334012339,1722679841747,-567.767446,0.0001369,2]
[334012341,1722679841757,-151.0,0.0001369,2]
[334012343,1722679841767,-151.0,0.0001369,2]
[334012345,1722679841779,-151.0,0.0001369,2]
[334012347,1722679841789,-360.503232,0.0001369,2]
[334012349,1722679841801,-360.503232,0.0001369,2]
[334012351,1722679841810,-239.487699,0.00013697,2]
[334012353,1722679841824,-239.487699,0.00013697,2]
[334012355,1722679841833,-151.0,0.00013697,2]
[334012357,1722679841843,-151.0,0.00013697,2]
[334012359,1722679841852,-964.72,0.00013697,2]
[334012361,1722679841863,-964.72,0.00013697,2]
[334012363,1722679841872,-964.72,0.00013697,2]
[334012365,1722679841881,-964.72,0.00013697,2]
[334012367,1722679841891,-345.74881,0.00013697,2]
[334012369,1722679841903,-345.74881,0.00013697,2]
[334012371,1722679841914,-591.472538,0.00013697,2]
[334012373,1722679841925,-151.0,0.00013697,2]
[334012375,1722679841936,-591.472538,0.00013697,2]
[334012378,1722679841948,-176.844736,0.00013697,2]
[334012380,1722679841958,-176.844736,0.00013697,2]
[334012382,1722679841969,-176.844736,0.00013697,2]
[334012384,1722679841980,-176.844736,0.00013697,2]
[334012386,1722679841991,-239.957566,0.00013697,2]
[334012388,1722679842001,-239.957566,0.00013697,2]
[334012390,1722679842012,-239.957566,0.00013697,2]
[334012393,1722679842023,-239.957566,0.00013697,2]
[334012395,1722679842033,-151.0,0.00013697,2]
[334012397,1722679842043,-151.0,0.00013697,2]
[334012399,1722679842053,-567.767446,0.00013697,2]
[334012401,1722679842063,-567.767446,0.00013697,2]
[334012403,1722679842075,-567.767446,0.00013697,2]
[334012405,1722679842083,-567.767446,0.00013697,2]
[334012407,1722679842094,-151.0,0.00013697,2]
[334012409,1722679842104,-151.0,0.00013697,2]
[334012411,1722679842113,-151.0,0.00013697,2]
[334012413,1722679842123,-360.503232,0.00013697,2]
[334012415,1722679842132,-360.503232,0.00013697,2]
[334012417,1722679842143,-506.99454715,0.00013698,2]
[334012419,1722679842153,-500.0,0.00013698,2]
[334012421,1722679842163,-500.0,0.00013698,2]
[334012423,1722679842173,-500.0,0.00013698,2]
[334012425,1722679842183,-500.0,0.00013698,2]
[334012427,1722679842193,-542.15017006,0.00013698,2]
[334012441,1722679842320,-500.0,0.00013698,2]
[334012443,1722679842333,-503.67513818,0.00013698,2]
[334012445,1722679842343,-502.67353918,0.00013698,2]
[334012448,1722679842354,-500.0,0.00013698,2]
[334012450,1722679842364,-500.0,0.00013698,2]
[334012452,1722679842375,-500.0,0.00013698,2]
[334012454,1722679842384,-502.48619921,0.00013698,2]
[334012455,1722679842394,-601.01,0.00013698,2]
[334012458,1722679842405,-500.0,0.00013698,2]
[334012459,1722679842415,-501.40327288,0.00013698,2]
[334012461,1722679842425,-500.0,0.00013698,2]
[334012463,1722679842434,-152.74347481,0.00013698,2]
[334012465,1722679842444,-206.57770952,0.00013698,2]
[334012468,1722679842455,-500.0,0.00013698,2]
[334012470,1722679842465,-500.0,0.00013698,2]
[334012472,1722679842475,-500.0,0.00013698,2]
[334012474,1722679842486,-500.0,0.00013698,2]
[334012476,1722679842495,-151.0,0.00013698,2]
[334012478,1722679842505,-514.34763915,0.00013698,2]
[334012480,1722679842517,-504.91443185,0.00013698,2]
[334012482,1722679842528,-500.0,0.00013698,2]
[334012484,1722679842538,-767.72,0.00013698,2]
[334012486,1722679842549,-500.0,0.00013698,2]
[334012488,1722679842559,-483.35965759,0.00013698,2]
[334012490,1722679842569,-500.6614948,0.00013698,2]
[334012492,1722679842579,-500.0,0.00013698,2]
[334012494,1722679842588,-501.04584901,0.00013698,2]
[334012496,1722679842599,-500.0,0.00013698,2]
[334012498,1722679842608,-503.0087459,0.00013698,2]
[334012500,1722679842618,-500.0,0.00013698,2]
[334012502,1722679842627,-329.04185234,0.00013698,2]
[334012504,1722679842637,-500.0,0.00013698,2]
[334012506,1722679842647,-500.0,0.00013698,2]
[334012508,1722679842657,-500.0,0.00013698,2]
[334012510,1722679842668,-541.87180591,0.00013698,2]
[334012512,1722679842680,-500.0,0.00013698,2]
[334012514,1722679842690,-298.29774428,0.00013698,2]
[334012517,1722679842702,-500.0,0.00013698,2]
[334012519,1722679842713,-500.0,0.00013698,2]
[334012521,1722679842723,-455.6842782,0.00013698,2]
[334012523,1722679842733,-500.0,0.00013698,2]
[334012525,1722679842743,-519.41162688,0.00013698,2]
[334012528,1722679842752,-500.0,0.00013698,2]
[334012530,1722679842762,-503.4325015,0.00013698,2]
[334012532,1722679842773,-500.0,0.00013698,2]
[334012534,1722679842784,-500.0,0.00013698,2]
[334012537,1722679842795,-151.0,0.00013698,2]
[334012539,1722679842804,-151.0,0.00013698,2]
[334012541,1722679842816,-151.0,0.00013698,2]
[334012543,1722679842828,-500.0,0.00013698,2]
[334012545,1722679842839,-151.0,0.00013698,2]
[334012547,1722679842850,-151.0,0.00013698,2]
[334012549,1722679842860,-151.0,0.00013698,2]
[334012551,1722679842870,-151.0,0.00013698,2]
[334012553,1722679842880,-151.0,0.00013698,2]
[334012556,1722679842892,-264.232269,0.00013698,2]
[334012558,1722679842904,-463.11357098,0.00013698,2]
[334012560,1722679842913,-500.0,0.00013698,2]
[334012562,1722679842924,-621.98,0.00013698,2]
[334012564,1722679842935,-388.96379123,0.00013698,2]
[334012566,1722679842946,-500.0,0.00013698,2]
[334012568,1722679842956,-503.3226659,0.00013698,2]
[334012570,1722679842965,-500.0,0.00013698,2]
[334012572,1722679842974,-501.01393807,0.00013698,2]
[334012574,1722679842984,-500.0,0.00013698,2]
[334012576,1722679842993,-500.02586365,0.00013698,2]
[334012578,1722679843003,-657.41,0.00013698,2]
[334012580,1722679843012,-754.11,0.00013698,2]
[334012582,1722679843022,-500.0,0.00013698,2]
[334012584,1722679843032,-500.0,0.00013698,2]
[334012586,1722679843041,-151.0,0.00013698,2]
[334012588,1722679843050,-151.0,0.00013698,2]
[334012591,1722679843061,-264.67097,0.00013698,2]
[334012593,1722679843070,-151.0,0.00013698,2]
[334012595,1722679843081,-500.0,0.00013698,2]
[334012597,1722679843092,-502.62511725,0.00013698,2]
[334012599,1722679843103,-500.0,0.00013698,2]
[334012601,1722679843113,-500.0,0.00013698,2]
[334012603,1722679843124,-500.0,0.00013698,2]
[334012606,1722679843136,-500.0,0.00013698,2]
[334012608,1722679843147,-500.0,0.00013698,2]
[334012610,1722679843157,-193.6297432,0.00013698,2]
[334012612,1722679843167,-569.52098236,0.00013698,2]
[334012614,1722679843176,-500.0,0.00013698,2]
[334012616,1722679843185,-502.3387285,0.00013698,2]
[334012618,1722679843194,-500.0,0.00013698,2]
[334012620,1722679843203,-500.0,0.00013698,2]
[334012622,1722679843213,-501.2042597,0.00013698,2]
[334012624,1722679843222,-529.8246672,0.00013698,2]
[334012626,1722679843232,-500.0,0.00013698,2]
[334012628,1722679843241,-344.33587548,0.00013698,2]
[334012630,1722679843251,-501.94553414,0.00013698,2]
[334012632,1722679843262,-500.0,0.00013698,2]
[334012635,1722679843272,-506.31900691,0.00013698,2]
[334012637,1722679843284,-1299.75,0.00013698,2]
[334012639,1722679843294,-500.0,0.00013698,2]
[334012641,1722679843306,-500.0,0.00013698,2]
[334012643,1722679843316,-500.0,0.00013698,2]
[334012645,1722679843326,-500.0,0.00013698,2]
[334012647,1722679843335,-500.0,0.00013698,2]
[334012650,1722679843347,-500.0,0.00013698,2]
[334012652,1722679843357,-500.0,0.00013698,2]
[334012655,1722679843367,-432.38462124,0.00013698,2]
[334012657,1722679843377,-415.46381484,0.00013698,2]
[334012659,1722679843386,-500.0,0.00013698,2]
[334012661,1722679843395,-1452.33,0.00013698,2]
[334012663,1722679843405,-500.0,0.00013698,2]
[334012665,1722679843414,-621.80644506,0.00013698,2]
[334012667,1722679843424,-503.01767572,0.00013698,2]
[334012669,1722679843433,-500.0,0.00013698,2]
[334012671,1722679843443,-500.0,0.00013698,2]
[334012673,1722679843453,-278.02057295,0.00013698,2]
[334012675,1722679843463,-500.0,0.00013698,2]
[334012677,1722679843472,-166.07300967,0.00013698,2]
[334012679,1722679843481,-500.0,0.00013698,2]
[334012681,1722679843491,-500.0,0.00013698,2]
[334012683,1722679843500,-500.0,0.00013698,2]
[334012685,1722679843510,-500.0,0.00013698,2]
[334012687,1722679843519,-500.0,0.00013698,2]
[334012689,1722679843530,-500.0,0.00013698,2]
[334012691,1722679843539,-754.41,0.00013698,2]
[334012693,1722679843548,-500.0,0.00013698,2]
[334012695,1722679843558,-500.0,0.00013698,2]
[334012698,1722679843568,-500.0,0.00013698,2]
[334012700,1722679843577,-500.0,0.00013698,2]
[334012702,1722679843587,-500.0,0.00013698,2]
[334012703,1722679843596,-500.0,0.00013698,2]
[334012706,1722679843606,-500.0,0.00013698,2]
[334012708,1722679843616,-500.0,0.00013698,2]
[334012710,1722679843626,-500.0,0.00013698,2]
[334012712,1722679843635,-500.0,0.00013698,2]
[334012714,1722679843645,-500.0,0.00013698,2]
[334012715,1722679843654,-500.0,0.00013698,2]
[334012717,1722679843664,-500.0,0.00013698,2]
[334012718,1722679843673,-500.0,0.00013698,2]
[334012719,1722679843683,-679.88,0.00013698,2]
[334012720,1722679843692,-504.92247799,0.00013698,2]
[334012721,1722679843701,-500.0,0.00013698,2]
[334012722,1722679843711,-500.0,0.00013698,2]
[334012723,1722679843720,-500.0,0.00013698,2]
[334012724,1722679843730,-500.0,0.00013698,2]
[334012725,1722679843739,-500.0,0.00013698,2]
[334012726,1722679843749,-500.89833952,0.00013698,2]
[334012727,1722679843758,-500.0,0.00013698,2]
[334012728,1722679843768,-500.0,0.00013698,2]
[334012729,1722679843778,-500.0,0.00013698,2]
[334012731,1722679843790,-1033.19,0.00013698,2]
[334012733,1722679843800,-500.0,0.00013698,2]
[334012735,1722679843808,-500.0,0.00013698,2]
[334012737,1722679843822,-500.0,0.00013698,2]
[334012738,1722679843831,-500.0,0.00013698,2]
[334012740,1722679843841,-500.0,0.00013698,2]
[334012742,1722679843850,-729.91,0.00013698,2]
[334012744,1722679843862,-501.18022568,0.00013698,2]
[334012746,1722679843872,-500.0,0.00013698,2]
[334012748,1722679843881,-502.87523652,0.00013698,2]
[334012750,1722679843891,-519.72007247,0.00013698,2]
[334012753,1722679843901,-500.0,0.00013698,2]
[334012755,1722679843910,-500.0,0.00013698,2]
[334012757,1722679843920,-239.487699,0.00013698,2]
[334012759,1722679843930,-239.487699,0.00013698,2]
[334012761,1722679843939,-239.487699,0.00013698,2]
[334012763,1722679843949,-239.487699,0.00013698,2]
[334012765,1722679843959,-239.487699,0.00013698,2]
[334012767,1722679843970,-239.487699,0.00013698,2]
[334012769,1722679843979,-239.487699,0.00013698,2]
[334012771,1722679843989,-500.0,0.00013698,2]
[334012773,1722679843999,-239.487699,0.00013698,2]
[334012775,1722679844008,-239.487699,0.00013698,2]
[334012777,1722679844018,-518.87141673,0.00013698,2]
[334012779,1722679844029,-239.487699,0.00013698,2]
[334012781,1722679844038,-239.487699,0.00013698,2]
[334012783,1722679844047,-239.487699,0.00013698,2]
[334012785,1722679844057,-239.487699,0.00013698,2]
[334012787,1722679844066,-239.487701,0.00013698,2]
[334012789,1722679844076,-1096.46,0.00013698,2]
[334012791,1722679844087,-500.0,0.00013698,2]
[334012793,1722679844096,-500.0,0.00013698,2]
[334012795,1722679844107,-500.0,0.00013698,2]
[334012797,1722679844116,-154.330248,0.00013698,2]
[334012799,1722679844126,-151.0,0.00013698,2]
[334012801,1722679844135,-151.0,0.00013698,2]
[334012803,1722679844145,-151.0,0.00013698,2]
[334012805,1722679844154,-151.0,0.00013698,2]
[334012807,1722679844165,-500.0,0.00013698,2]
[334012809,1722679844177,-165.109278,0.00013698,2]
[334012811,1722679844186,-507.17993449,0.00013698,2]
[334012813,1722679844196,-1706.27,0.00013698,2]
[334012815,1722679844207,-539.05,0.00013698,2]
[334012816,1722679844217,-500.0,0.00013698,2]
[334012818,1722679844227,-517.45085263,0.00013698,2]
[334012820,1722679844237,-500.0,0.00013698,2]
[334012822,1722679844248,-176.439896,0.00013698,2]
[334012824,1722679844257,-586.89,0.00013698,2]
[334012826,1722679844267,-500.0,0.00013698,2]
[334012829,1722679844285,-500.0,0.00013698,2]
[334012831,1722679844295,-500.0,0.00013698,2]
[334012833,1722679844304,-500.0,0.00013698,2]
[334012835,1722679844314,-500.92981252,0.00013698,2]
[334012837,1722679844323,-500.0,0.00013698,2]
[334012839,1722679844333,-500.0,0.00013698,2]
[334012841,1722679844342,-500.0,0.00013698,2]
[334012843,1722679844352,-500.0,0.00013698,2]
[334012845,1722679844362,-500.0,0.00013698,2]
[334012847,1722679844371,-500.0,0.00013698,2]
[334012849,1722679844381,-500.0,0.00013698,2]
[334012851,1722679844391,-500.0,0.00013698,2]
[334012852,1722679844401,-500.0,0.00013698,2]
[334012854,1722679844410,-500.0,0.00013698,2]
[334012856,1722679844420,-503.44149162,0.00013698,2]
[334012858,1722679844429,-500.0,0.00013698,2]
[334012860,1722679844439,-508.39845061,0.00013698,2]
[334012862,1722679844449,-3721.26,0.00013698,2]
[334012864,1722679844459,-500.0,0.00013698,2]
[334012866,1722679844469,-500.0,0.00013698,2]
[334012868,1722679844478,-500.0,0.00013698,2]
[334012870,1722679844488,-503.16626666,0.00013698,2]
[334012872,1722679844497,-500.0,0.00013698,2]
[334012874,1722679844506,-500.0,0.00013698,2]
[334012876,1722679844516,-500.0,0.00013698,2]
[334012878,1722679844525,-500.0,0.00013698,2]
[334012880,1722679844536,-500.0,0.00013698,2]
[334012882,1722679844545,-497.17330972,0.00013698,2]
[334012884,1722679844555,-271.83801709,0.00013698,2]
[334012922,1722679844924,-380.52198291,0.00013698,2]
[334012924,1722679844933,-500.0,0.00013698,2]
[334012926,1722679844943,-500.0,0.00013698,2]
[334012928,1722679844952,-181.20532155,0.00013698,2]
[334012930,1722679844961,-506.36099112,0.00013698,2]
[334012932,1722679844970,-500.0,0.00013698,2]
[334012933,1722679844979,-500.0,0.00013698,2]
[334012935,1722679844988,-500.0,0.00013698,2]
[334012937,1722679844997,-500.0,0.00013698,2]
[334012939,1722679845006,-500.0,0.00013698,2]
[334012941,1722679845016,-500.0,0.00013698,2]
[334012943,1722679845026,-227.27170442,0.00013698,2]
[334012960,1722679845187,-272.72829558,0.00013698,2]
[334012962,1722679845197,-624.12,0.00013698,2]
[334012964,1722679845206,-500.0,0.00013698,2]
[334012966,1722679845219,-349.65170442,0.00013698,2]
[334012969,1722679845235,-419.77829558,0.00013698,2]
[334012971,1722679845245,-371.50019332,0.00013698,2]
[334016088,1722681038296,-797.17277758,0.00012562,2]
[334016090,1722681039050,-117.22010672,0.00012562,2]
[334016092,1722681039061,-167.517909,0.00012986,2]
[334016094,1722681039071,-620.04682524,0.00013403,2]
[334016096,1722681039081,-2484.34011876,0.000135,2]
[334016098,1722681039091,-276.05089906,0.00013519,2]
[334016100,1722681039103,-5313.02250689,0.0001355,2]
[334016101,1722681039113,-1965.96391195,0.0001358,2]
[334016103,1722681039123,-155.95112177,0.0001359,2]
[334016105,1722681039134,-300.0,0.00013596,2]
[334016107,1722681039144,-763.73,0.00013597,2]
[334016109,1722681039153,-763.73,0.00013597,2]
[334016111,1722681039163,-60715.73296127,0.00013598,2]
[334016112,1722681039172,-594.0,0.000136,2]
[334016114,1722681039181,-200.0,0.00013673,2]
[334016116,1722681039194,-763.73,0.00013687,2]
[334016118,1722681039204,-763.73,0.00013687,2]
[334016120,1722681039213,-6257.09375217,0.00013688,2]
[334016121,1722681039223,-4628.67081697,0.00013688,2]
[334016164,1722681040681,-69643.57776033,0.00013688,2]
[334016166,1722681040693,-766.17,0.0001369,2]
[334016168,1722681040703,-5170.33001792,0.0001369,2]
[334016484,1722681043642,-9108.28331872,0.0001369,2]
[334018922,1722682013280,-167.789994,0.00012986,2]
[334018923,1722682013302,-276.05089907,0.00013181,2]
[334018924,1722682013323,-5313.02250689,0.00013244,2]
[334018925,1722682013347,-543.16443427,0.0001359,2]
[334018926,1722682013370,-1894.88884969,0.0001359,2]
[334018927,1722682177497,1000.0,0.00027,120]
[334018985,1722682232697,-300.0,0.00013589,2]
[334018987,1722682232708,-6443.22313111,0.0001359,2]
[334019077,1722682238993,-10521.58972898,0.0001359,2]
[334019080,1722682239004,-543.16443427,0.00013592,2]
[334019082,1722682239015,-543.16443427,0.00013594,2]
[334019083,1722682239026,-543.16443427,0.00013596,2]
[334019084,1722682239036,-1101.52,0.00013597,2]
[334019085,1722682239047,-1101.52,0.00013597,2]
[334019086,1722682239057,-543.16443427,0.00013598,2]
[334019087,1722682239068,-10959.24423216,0.00013598,2]
[334019088,1722682239081,-77928.75576784,0.00013598,2]
[334019089,1722682239091,-957.0,0.000136,2]
[334019090,1722682239102,-153.0,0.000136,2]
[334019091,1722682239112,-1675.81923299,0.000136,2]
[334019092,1722682239122,-25974.1976517,0.0001365,2]
[334019093,1722682239133,-8650.35994775,0.0001366,2]
[334019094,1722682239143,-200.0,0.00013673,2]
[334019095,1722682239154,-200.23993787,0.00013673,2]
[334019096,1722682239164,-1101.52,0.00013687,2]
[334019097,1722682239175,-1101.52,0.00013687,2]
[334019098,1722682239185,-4465.884056,0.00013688,5]
[334019099,1722682239196,-181819.383562,0.00013688,2]
[334019100,1722682239207,-1101.52,0.00013689,2]
[334019101,1722682239217,-39897.8842379,0.0001369,2]
[334019126,1722682240964,-12050.5110655,0.0001369,2]
[334019128,1722682240975,-151.0,0.0001369,2]
[334019130,1722682240986,-151.225038,0.0001369,2]
[334019133,1722682240996,-155.960736,0.0001369,2]
[334019135,1722682241008,-151.0,0.0001369,2]
[334019136,1722682241019,-155.960736,0.0001369,2]
[334019137,1722682241030,-151.0,0.0001369,2]
[334019138,1722682241040,-360.503232,0.0001369,2]
[334019139,1722682241051,-151.0,0.0001369,2]
[334019140,1722682241063,-360.503232,0.0001369,2]
[334019141,1722682241073,-151.830209,0.0001369,2]
[334019142,1722682241084,-1101.52,0.00013697,2]
[334019143,1722682241095,-1101.52,0.00013697,2]
[334019144,1722682241106,-1101.52,0.00013697,2]
[334019145,1722682241117,-1101.52,0.00013697,2]
[334019146,1722682241128,-1101.52,0.00013697,2]
[334019147,1722682241138,-1101.52,0.00013697,2]
[334019148,1722682241150,-6347.10520972,0.00013698,5]
[334019149,1722682241161,-500.0,0.00013698,2]
[334019150,1722682241171,-500.0,0.00013698,2]
[334019151,1722682241182,-500.0,0.00013698,2]
[334019152,1722682241192,-500.0,0.00013698,2]
[334019153,1722682241202,-500.0,0.00013698,2]
[334019154,1722682241214,-500.0,0.00013698,2]
[334019155,1722682241225,-500.0,0.00013698,2]
[334019156,1722682241236,-500.0,0.00013698,2]
[334019157,1722682241246,-500.0,0.00013698,2]
[334019158,1722682241256,-503.01767572,0.00013698,2]
[334019159,1722682241267,-500.0,0.00013698,2]
[334019160,1722682241277,-500.0,0.00013698,2]
[334019161,1722682241288,-500.0,0.00013698,2]
[334019162,1722682241297,-500.0,0.00013698,2]
[334019163,1722682241308,-500.0,0.00013698,2]
[334019164,1722682241318,-264.65147372,0.00013698,2]
[334019165,1722682241332,-600.21851566,0.00013698,2]
[334019166,1722682241341,-432.38462124,0.00013698,2]
[334019167,1722682241351,-500.0,0.00013698,2]
[334019168,1722682241361,-500.0,0.00013698,2]
[334019169,1722682241372,-500.0,0.00013698,2]
[334019170,1722682241383,-500.0,0.00013698,2]
[334019171,1722682241392,-500.0,0.00013698,2]
[334019172,1722682241411,-500.0,0.00013698,2]
[334019173,1722682241420,-325.33908201,0.00013698,2]
[334019174,1722682241429,-500.0,0.00013698,2]
[334019175,1722682241439,-500.0,0.00013698,2]
[334019176,1722682241449,-500.0,0.00013698,2]
[334019177,1722682241458,-518.87141673,0.00013698,2]
[334019178,1722682241467,-500.0,0.00013698,2]
[334019179,1722682241477,-499.99999999,0.00013698,2]
[334019180,1722682241486,-500.0,0.00013698,2]
[334019181,1722682241496,-500.0,0.00013698,2]
[334019182,1722682241509,-519.72007247,0.00013698,2]
[334019183,1722682241518,-500.0,0.00013698,2]
[334019184,1722682241530,-502.87523652,0.00013698,2]
[334019185,1722682241541,-500.0,0.00013698,2]
[334019186,1722682241554,-500.0,0.00013698,2]
[334019187,1722682241568,-506.72900474,0.00013698,2]
[334019188,1722682241581,-500.0,0.00013698,2]
[334019189,1722682241594,-500.0,0.00013698,2]
[334019190,1722682241605,-501.18022568,0.00013698,2]
[334019191,1722682241615,-415.46381484,0.00013698,2]
[334019192,1722682241626,-500.0,0.00013698,2]
[334019193,1722682241637,-497.17330972,0.00013698,2]
[334019194,1722682241649,-500.0,0.00013698,2]
[334019195,1722682241658,-500.0,0.00013698,2]
[334019196,1722682241669,-500.0,0.00013698,2]
[334019197,1722682241679,-500.0,0.00013698,2]
[334019198,1722682241690,-507.17993449,0.00013698,2]
[334019199,1722682241702,-176.439896,0.00013698,2]
[334019200,1722682241711,-504.66145901,0.00013698,2]
[334019201,1722682241721,-500.0,0.00013698,2]
[334019202,1722682241732,-500.0,0.00013698,2]
[334019203,1722682241741,-500.0,0.00013698,2]
[334019204,1722682241751,-503.44149162,0.00013698,2]
[334019205,1722682241760,-500.0,0.00013698,2]
[334019206,1722682241770,-508.39845061,0.00013698,2]
[334019207,1722682241780,-500.0,0.00013698,2]
[334019208,1722682241791,-500.0,0.00013698,2]
[334019209,1722682241801,-501.51688979,0.00013698,2]
[334019210,1722682241812,-506.00803671,0.00013698,2]
[334019211,1722682241823,-500.0,0.00013698,2]
[334019212,1722682241834,-628.49980668,0.00013698,2]
[334019213,1722682241847,-500.0,0.00013698,2]
[334019214,1722682241858,-500.0,0.00013698,2]
[334019215,1722682241869,-500.0,0.00013698,2]
[334019216,1722682241881,-500.0,0.00013698,2]
[334019217,1722682241891,-500.0,0.00013698,2]
[334019218,1722682241902,-576.25830808,0.00013698,2]
[334019219,1722682241914,-500.0,0.00013698,2]
[334019220,1722682241926,-500.0,0.00013698,2]
[334019221,1722682241937,-504.00307471,0.00013698,2]